Cogmind - Beta 15 @@@ ROGUE MODE // 2025.06.13 @ 17:27:33 // Winter2019/RPGLIKE Player: Jack Result: Destroyed by G-50 Soldier with Heavy Laser Performance ------------- Evolutions (2) 1000 Regions Visited (3) 600 Robots Destroyed (15) 75 Value Destroyed (314) 314 Prototype IDs (0) 0 Alien Tech Used (0) 0 Bonus (0) 0 TOTAL SCORE: 1989 Bonus ------- None Cogmind --------- Core Integrity 0/600 Matter 232/300 Energy 125/125 System Corruption 1% Temperature Hot (229) Movement Flying (37) Location -8/Materials Parts ------- > --- POWER (1) -------- Light Ion Engine > --- PROPULSION (2) --- Flight Unit Flight Unit > --- UTILITY (1) ------ (None) > --- WEAPON (4) ------- Assault Rifle Light Assault Rifle Light Assault Rifle Light Assault Rifle > --- INVENTORY (0) ---- (None) Peak State ------------ > --- POWER ------------ Light Ion Engine > --- PROPULSION ------- Flight Unit Flight Unit > --- UTILITY ---------- (None) > --- WEAPON ----------- Assault Rifle Light Assault Rifle Light Assault Rifle Light Assault Rifle > --- INVENTORY -------- (None) [Rating: 7] Favorites ----------- Power Light Ion Engine Engine Light Ion Engine Propulsion Flight Unit Flight Unit Flight Unit Utility None Weapon Light Assault Rifle Ballistic Gun Light Assault Rifle Build | -11 -10 -9 -8 ------- Run | Yrd Mat Mat Mat Slots Evolved 4 | 4 . . . Power . | . . . . Propulsion 1 | 1 . . . Utility . | . . . . Weapon 3 | 3 . . . Parts Attached 10 | 3 . 4 3 Power 2 | . . 1 1 Engine 2 | . . 1 1 Core . | . . . . Reactor . | . . . . Propulsion 4 | . . 2 2 Treads . | . . . . Leg . | . . . . Wheel . | . . . . Hover . | . . . . Flight 4 | . . 2 2 Utility . | . . . . Device . | . . . . Storage . | . . . . Processor . | . . . . Hackware . | . . . . Protection . | . . . . Artifact . | . . . . Weapon 4 | 3 . 1 . Energy Gun . | . . . . Energy Cannon . | . . . . Ballistic Gun 4 | 3 . 1 . Ballistic Cannon . | . . . . Launcher . | . . . . Special Weapon . | . . . . Impact Weapon . | . . . . Slashing Weapon . | . . . . Piercing Weapon . | . . . . Special Melee Weapon . | . . . . Unidentified Prototypes . | . . . . Parts Lost . | . . . . Power . | . . . . Propulsion . | . . . . Utility . | . . . . Weapon . | . . . . Highest Loss Streak . | . . . . To Critical Strikes . | . . . . Average Backups . | . . . . Power . | . . . . Propulsion . | . . . . Utility . | . . . . Weapon . | . . . . Tool/Special . | . . . . Unused Backups . | . . . . Power . | . . . . Propulsion . | . . . . Utility . | . . . . Weapon . | . . . . Tool/Special . | . . . . Average Slot Usage (%) 65 | . 37 71 87 Engine 6 | . . 8 12 Flight 14 | . . 17 25 Ballistic Gun 44 | . 37 45 50 Peak Build Rating 7 | 3 3 7 7 Average Rating 5 | 1 3 5 7 On Entrance 3 | . 3 3 7 Naked Turns . | . . . . Heaviest Build 8 | 4 4 8 8 Greatest Support 13 | 8 8 13 13 Greatest Overweight (x) . | . . . . Average Overweight (x) . | . . . . Largest Inventory Capacity . | . . . . Average Capacity . | . . . . Most Carried . | . . . . Average Carried . | . . . . Final Capacity . | . . . . Final Carried . | . . . . Class Distribution -------------------- 45% | Gunner 28% | Hacker-Gunner 26% | Scavenger-Gunner Dominant Class ---------------- Gunner | -10/Materials Scavenger-Gunner | -9/Materials Hacker-Gunner | -8/Materials Resources | -11 -10 -9 -8 ----------- Run | Yrd Mat Mat Mat Matter Collected 465 | 170 90 141 64 Remotely . | . . . . Salvage Created 455 | . 99 221 135 Parts 38 | . 1 17 20 Haulers Intercepted 1 | . . 1 . Recyclers Shooed . | . . . . Parts Field Recycled . | . . . . Retrieved Matter . | . . . . Parts Self-Destructed . | . . . . Prevented . | . . . . Kills | -11 -10 -9 -8 ------- Run | Yrd Mat Mat Mat Combat Hostiles Destroyed 12 | . . 6 6 Guns 12 | . . 6 6 Classes Destroyed 6 | . 2 3 1 Worker 1 | . 1 . . Hauler 1 | . . 1 . Recycler 1 | . 1 . . Swarmer 7 | . . 4 3 Sentry 4 | . . 2 2 Hunter 1 | . . . 1 Best Kill Streak 5 | . 2 5 3 Combat Bots Only 4 | . . 4 3 Max Kills in Single Turn 2 | . 1 2 1 Gunslinging 1 | . . 1 . Exploded . | . . . . Melee . | . . . . Uniques/NPCs Destroyed . | . . . . Combat | -11 -10 -9 -8 -------- Run | Yrd Mat Mat Mat Hostile Shots Fired 103 | . . 45 58 Missed 35 | . . 15 20 Hits 68 | . . 30 38 Projectile 68 | . . 30 38 Critical Strikes 1 | . . . 1 Damage Taken 830 | . . 311 519 Core 686 | . . 266 420 Absorbed by Shields . | . . . . Redirected to Core 510 | . . 162 348 Core Remaining (%) 89 | 100 100 68 . Volleys Fired 41 | . 6 18 17 Largest 4 | . 3 4 4 Hottest 80 | . 60 80 80 Shots Fired 151 | . 18 65 68 Gun 151 | . 18 65 68 Cannon . | . . . . Launcher . | . . . . Special . | . . . . Kinetic 151 | . 18 65 68 Thermal . | . . . . Explosive . | . . . . Electromagnetic . | . . . . Robot Hit Streak 9 | . 9 4 7 Robot Miss Streak 4 | . 1 3 4 Penetration Max . | . . . . Secondary Targets 4 | . . 3 1 Max Gunslinging Chain 2 | . . 2 1 Shots Hit Robots 83 | . 13 34 36 Core Hits 33 | . 4 13 16 Critical Kills . | . . . . Critical Parts Destroyed . | . . . . Critical Strikes . | . . . . Melee Attacks . | . . . . Impact . | . . . . Slashing . | . . . . Piercing . | . . . . Sneak Attacks . | . . . . Combat Hostiles . | . . . . Follow-up Attacks . | . . . . Damage Inflicted 774 | . 130 332 312 Guns 774 | . 130 332 312 Cannons . | . . . . Explosions . | . . . . Melee . | . . . . Ramming . | . . . . Kinetic 774 | . 130 332 312 Thermal . | . . . . Explosive . | . . . . Electromagnetic . | . . . . Impact . | . . . . Slashing . | . . . . Piercing . | . . . . Highest Corruption 1 | . . . 1 Average Corruption 1 | . . . 1 Corruption Purged . | . . . . Corruption Blocked . | . . . . Overload Shots . | . . . . Overflow Damage . | . . . . Projectiles . | . . . . Explosions . | . . . . Melee . | . . . . Knockbacks . | . . . . Impact . | . . . . Kinetic . | . . . . Secondary . | . . . . Self-Inflicted Damage . | . . . . Shots . | . . . . Rammed . | . . . . Targets Rammed . | . . . . Kicked . | . . . . Crushed . | . . . . Highest Temperature 220 | . 10 170 220 Average Temperature 59 | . 7 57 68 Received Heat Transfer 204 | . . 33 171 Siege Activations . | . . . . Martial Activations . | . . . . Shielding Activations . | . . . . Robots Disrupted . | . . . . Combat Hostiles . | . . . . Robots Corrupted . | . . . . Combat Hostiles . | . . . . Parts Fried . | . . . . Impact Corruptions . | . . . . Robots Melted . | . . . . Combat Hostiles . | . . . . Parts Melted . | . . . . Heat Transferred . | . . . . Parts Sabotaged . | . . . . Parts Stolen . | . . . . Parts Stripped . | . . . . Power Chain Reactions . | . . . . Alert | -11 -10 -9 -8 ------- Run | Yrd Mat Mat Mat Maximum Alert Level 1 | . . . 1 Low Security (%) 98 | 100 100 100 94 Level 1 1 | . . . 5 Level 2 . | . . . . Level 3 . | . . . . Level 4 . | . . . . Level 5 . | . . . . High Security . | . . . . Max Security . | . . . . Peak Influence 213 | . 10 112 213 Initial 38 | . . . 38 Average 54 | . . 68 103 Influence Increases 437 | . 10 172 255 Destroy 0b10 Robot/C 240 | . . 120 120 Destroy 0b10 Robot/NC 15 | . 10 5 . Destroy Leader 72 | . . 32 40 Successful Hack 5 | . . . 5 Partial Spotted 30 | . . 15 15 Lose Combat Pursuer 75 | . . . 75 Influence Decreases 224 | . 10 80 134 Entered New Map 54 | . . . 54 Time Decay 170 | . 10 80 80 Squads Dispatched 3 | . . 1 2 Investigation 1 | . . . 1 Extermination . | . . . . Reinforcement 2 | . . 1 1 Assault . | . . . . Garrison . | . . . . Intercept . | . . . . Searches Triggered . | . . . . Construction Impeded . | . . . . Haulers Reinforced . | . . . . Active Scanning Responses . | . . . . Cargo Convoy Interrupts . | . . . . Stealth | -11 -10 -9 -8 --------- Run | Yrd Mat Mat Mat Distress Signals 4 | . . . 4 Communications Jammed . | . . . . Distress Signals . | . . . . Times Spotted 35 | . 3 12 20 Peak Tracking Total 10 | . 2 4 10 Tactical Retreats 3 | . . . 3 Traps | -11 -10 -9 -8 ------- Run | Yrd Mat Mat Mat Traps Triggered . | . . . . Indirectly . | . . . . Trap Hack Attempts . | . . . . Triggered . | . . . . Disarmed . | . . . . Reprogrammed . | . . . . Reused . | . . . . Traps Extracted . | . . . . Installed . | . . . . Triggered . | . . . . Machines | -11 -10 -9 -8 ---------- Run | Yrd Mat Mat Mat Machines Disabled . | . . . . Max in Single Turn . | . . . . Machines Repaired . | . . . . Machines Dismantled . | . . . . Machines Sabotaged . | . . . . Overloaded Fab Kills . | . . . . Hacking | -11 -10 -9 -8 --------- Run | Yrd Mat Mat Mat Machines Accessed 2 | . . 1 1 Terminals 2 | . . 1 1 Fabricators . | . . . . Repair Stations . | . . . . Recycling Units . | . . . . Scanalyzers . | . . . . Garrison Access . | . . . . Total Hacks 4 | . . 1 3 Successful 2 | . . 1 1 Failed 1 | . . . 1 Catastrophic . | . . . . Database Lockouts 1 | . . . 1 Manual 4 | . . 1 3 Terminals 4 | . . 1 3 Fabricators . | . . . . Repair Stations . | . . . . Recycling Units . | . . . . Scanalyzers . | . . . . Garrison Access . | . . . . Terminal Hacks 2 | . . 1 1 Part Schematic 2 | . . 1 1 Fabricator Hacks . | . . . . Repair Station Hacks . | . . . . Recycling Unit Hacks . | . . . . Scanalyzer . | . . . . Garrison Access Hacks . | . . . . Unauthorized Hacks . | . . . . Terminals . | . . . . Fabricators . | . . . . Repair Stations . | . . . . Recycling Units . | . . . . Scanalyzers . | . . . . Garrison Access . | . . . . Data Cores Recovered . | . . . . Used . | . . . . Hacking Detections 1 | . . . 1 Full Trace Events 1 | . . . 1 Feedback Events 1 | . . . 1 Corruption 1 | . . . 1 Feedback Blocked . | . . . . Robot Schematics Acquired . | . . . . Robots Built . | . . . . Authchips . | . . . . Time . | . . . . Total Robot Build Rating . | . . . . Part Schematics Acquired 2 | . . 1 1 Parts Built . | . . . . Authchips . | . . . . Time . | . . . . Total Part Build Rating . | . . . . Parts Repaired . | . . . . Time . | . . . . Parts Recycled . | . . . . Recycled Matter . | . . . . Retrieved Matter . | . . . . Retrieved Components . | . . . . Parts Scanalyzed . | . . . . Part Schematics Acquired . | . . . . Parts Damaged . | . . . . Bothacking | -11 -10 -9 -8 ------------ Run | Yrd Mat Mat Mat Used RIF Installer . | . . . . Robots Hacked . | . . . . Non-combat . | . . . . Combat . | . . . . Robot Hacks Applied . | . . . . Relay Couplers Released . | . . . . Fabnet Peak Effective % . | . . . . Robots Rewired . | . . . . Allies Hacked . | . . . . Hacks Repelled . | . . . . Allies | -11 -10 -9 -8 -------- Run | Yrd Mat Mat Mat Total Allies . | . . . . Largest Group . | . . . . Highest-Rated Group . | . . . . Highest-Rated Ally . | . . . . Total Orders . | . . . . Ally Attacks . | . . . . Total Damage . | . . . . Kills . | . . . . Allies Corrupted . | . . . . Allies Melted . | . . . . Intel | -11 -10 -9 -8 ------- Run | Yrd Mat Mat Mat Active Infowar (turns) . | . . . . Robot Analysis Total . | . . . . Derelict Logs Recovered . | . . . . Drone Launches . | . . . . Drone Recoveries . | . . . . Exploration | -11 -10 -9 -8 ------------- Run | Yrd Mat Mat Mat Turns Passed 570 | 30 176 197 167 Spaces Moved 961 | 51 317 344 249 Core 424 | 51 317 56 . Treads . | . . . . Legs . | . . . . Wheels . | . . . . Hover . | . . . . Flight 537 | . . 288 249 Fastest Speed 37 | 50 50 37 37 Average Speed 42 | 50 50 39 37 Slowest Speed 50 | 50 50 50 37 Overloaded Moves . | . . . . Propulsion Burnouts . | . . . . Robots Hopped 8 | . . 4 4 Potential Cave-ins . | . . . . Cave-ins Triggered . | . . . . Exploration Rate (%) 26 | 3 39 33 31 Regions Visited 3 Branch Regions . Pre-discovered Areas . | . . . . Known Exits Taken . | . . . . Unknown Exits Taken 3 | 1 1 1 . Scrap Searched . | . . . . Spaces Dug . | . . . . Terrain Destroyed . | . . . . Melee . | . . . . Projectile . | . . . . AOE . | . . . . Terrain Rammed . | . . . . Walls Destroyed . | . . . . Machines Disabled . | . . . . Actions | -11 -10 -9 -8 --------- Run | Yrd Mat Mat Mat Total 1029 | 53 322 365 289 Wait 21 | . . . 21 Move 942 | 50 316 335 241 Hop 8 | . . 4 4 Pick Up . | . . . . Fast Attach 7 | 3 . 4 . Attach . | . . . . Detach . | . . . . Swap 3 | . . . 3 Drop 3 | . . . 3 Fire 41 | . 6 18 17 Melee . | . . . . Ram . | . . . . Kick . | . . . . Crush . | . . . . Escape Stasis . | . . . . Rewire . | . . . . Trap . | . . . . Miscellaneous 4 | . . 4 . Route ------- -11/Scrapyard -10/Materials (discovered 2 exits: *Mat / [*Min]) -9/Materials -8/Materials History --------- Turn | Location | Event 3 | -11/Scrapyard | Upgraded with Propulsion slot (x1) 3 | -11/Scrapyard | Upgraded with Weapon slot (x3) 4 | -11/Scrapyard | Discovered new exit (range 15) 31 | -11/Scrapyard | Entered Materials 130 | -10/Materials | Discovered new exit (range 16) 162 | -10/Materials | Discovered new exit (range 14) 207 | -10/Materials | Entered another Materials area 209 | -9/Materials | Reached level 2 382 | -9/Materials | Discovered new exit (range 8) 404 | -9/Materials | Entered another Materials area 406 | -8/Materials | Reached level 3 450 | -8/Materials | Core integrity fell below 50% 474 | -8/Materials | Central database locked down 562 | -8/Materials | Core integrity fell below 20% 563 | -8/Materials | Reached level 4 571 | -8/Materials | Destroyed by G-50 Soldier with Heavy Laser Last Messages --------------- W-25 Informer sends out distress signal. K-01 Serf cleans the Recycling Unit. S-10 Pest destroyed. Acquired 22 matter. S-10 Pest destroyed. Acquired 18 matter. Dropped Flight Unit. Acquired 24 matter. Dropped Lgt. Ion Engine. W-25 Informer sends out distress signal. Dropped Flight Unit. K-01 Serf collects debris. Y-45 Defender destroyed. Slug penetrates Nuclear Reactor. K-01 Serf collects debris. Penetrated by Slug. Reached level 4. H-55 Commando destroyed. Switching to secondary target: Y-45 Defender. Critical hit (Burn: +37). Map ----- +----------------------------------------------------+ | ????????????????????????????????# | | ??????????????????????##????????# | | ????????????????????###%###?????# | | ????????????????????#[!!=[#?????# | | ????????????????????# =%[ #?????# | | ????????????????????# #?????# | | ????????????????????# #?????###? | | ????????????????????# !== #??####### | | ????????????????????# != #??# """ | | ????????????????????# != #??# "Y" ! | | ????????????????????# #??# " " | | ????????????????????# "" #??# = | | ????????###########?# T" #??# !% | | ????????# #?# "" #??#! % * | | ????????# [[[ #?# ########## | | ????????# [[ ###+##+## | | ????????# [[ #/ | | ????????# # | | ????????# [ [# """ """ """ | | ????????# # """ """ """ | | ???????# # """ """ """ | | ????????########+## | | ?????????????# | | ?????????????# | | ?????###########/## ###+####+#### | | ?????# !! @ gg ######???????????? | | ?????# ![ / g #????????????????? | | ?????# Y #????????????????? | | ?????# #????????????????? | | ?????# #????????????????? | | ?????##############????????????????? | | | | | | | | | | | | | | | | | | | | | | | | | | | | | | | | | | | | | | | +----------------------------------------------------+ Best States ------------- Heat Dissipation 25 Energy Generation 10 Energy Capacity 125 Matter Stores 300 Matter Capacity 300 Sight Range 16 Terrain Scan Density 10 Evasion (%) 62 Offensive Hacking 25 Item Schematics ----------------- Shield Generator | -9/Materials | Hacked Katana | -8/Materials | Hacked Robot Schematics ------------------ None Fabricated ------------ Nothing Repaired ---------- Nothing Alien Tech Used ----------------- None Achievements -------------- None Challenges ------------ None RPGLIKE | -11 -10 -9 -8 --------- Run | Yrd Mat Mat Mat Levels Raised 3 | . . 1 2 XP Earned 7550 | 3000 . 2250 2300 XP Spent 6000 | 3000 . 1200 1800 Upgrades 10 | 5 . 3 2 Propulsion Slot 1 | 1 . . . Weapon Slot 3 | 3 . . . Mass Support 1 | 1 . . . Hack Attack % 5 | . . 3 2 Protomatter Created 140 | . . 42 98 Integrity Restored 78 | . . 78 . Core 78 | . . 78 . Protomatter Decayed 63 | . . 16 47 Game ------ Seed CryofiberMetaPrototype Manual? 0 Play Time 00:07:40 Cumulative 291.6 hours Start 2025.06.13 @ 17:21:49 End 2025.06.13 @ 17:27:33 Sessions 1 Manual Loads 0 Difficulty Rogue Special Mode Winter2019/RPGLIKE Game No. 286 Rogue 97 Adventurer 177 Explorer 12 Win Type - Total 65 Types 19/1/16/2/12/0/4/5/0/6 Lore% 57 Gallery% 56 Achievement% 72 Wizard Run 0 Options --------- Layout 0 ASCII 0 Keyboard 0 Movement Numpad Keybinds 0 Fullscreen 2 Font 12/Smallcaps Map View 83x54 Zoom Use 0% Tactical HUD 0 Map Filters NONE Filters NONE Steam 1 RUN: a5a56edb-8109-4183-8bd2-41c5d9701fa4